fUST/lending_fUST_20251106
["ID","MTS","AMOUNT","RATE_DAILY","PERIOD"]
[393241660,1762372244920,-1329.93,0.00014198,2]
[393241662,1762372244929,-1329.93,0.00014198,2]
[393241664,1762372244939,-1329.93,0.00014198,2]
[393241665,1762372244948,-1329.93,0.00014198,2]
[393241667,1762372244957,-1329.93,0.00014198,2]
[393241669,1762372244967,-1329.93,0.00014198,2]
[393241671,1762372244978,-1329.93,0.00014198,2]
[393241674,1762372244987,-1329.93,0.00014198,2]
[393241676,1762372244997,-1330.04398608,0.00014198,2]
[393241678,1762372245006,-629509.58059514,0.00014199,2]
[393241680,1762372245016,-999.38343424,0.00014498,2]
[393241682,1762372245025,-1561.536616,0.00014498,2]
[393241684,1762372245035,-308.78206523,0.00014498,2]
[393241686,1762372245044,-482.47197692,0.00014498,2]
[393241688,1762372245053,-1177.93703347,0.00014498,2]
[393241690,1762372245064,-174.39810377,0.00014498,2]
[393241692,1762372245074,-313.91658679,0.00014498,2]
[393241694,1762372245083,-558.07393208,0.00014538,2]
[393241696,1762372245092,-300.0,0.00014584,2]
[393241698,1762372245101,-300.0,0.00014584,2]
[393241700,1762372245110,-300.0,0.00014584,2]
[393241702,1762372245119,-300.0,0.00014584,2]
[393241704,1762372245128,-300.0,0.00014584,2]
[393241706,1762372245137,-300.0,0.00014584,2]
[393241708,1762372245146,-300.0,0.00014584,2]
[393241710,1762372245155,-300.0,0.00014584,2]
[393241712,1762372245165,-300.0,0.00014584,2]
[393241714,1762372245174,-300.0,0.00014584,2]
[393241716,1762372245183,-300.0,0.00014584,2]
[393241718,1762372245193,-300.0,0.00014584,2]
[393241720,1762372245202,-300.0,0.00014584,2]
[393241722,1762372245211,-300.0,0.00014584,2]
[393241723,1762372245220,-300.0,0.00014584,2]
[393241726,1762372245234,-600.0,0.00014584,2]
[393241727,1762372245243,-1000.0,0.00014608,2]
[393241729,1762372245252,-1000.0,0.00014608,2]
[393241732,1762372245261,-1000.0,0.00014608,2]
[393241733,1762372245271,-1000.0,0.00014608,2]
[393241736,1762372245282,-1102.21484475,0.00014608,2]
[393241738,1762372245291,-1118.52052147,0.00014614,2]
[393241740,1762372245301,-200.0,0.00014728,2]
[393241742,1762372245312,-104017.69145341,0.00014729,2]
[393241744,1762372245321,-342.430816,0.00014729,2]
[393241746,1762372245330,-342.430816,0.00014729,2]
[393241748,1762372245339,-342.430816,0.00014729,2]
[393241750,1762372245347,-342.430816,0.00014729,2]
[393241752,1762372245357,-500.0,0.00014773,2]
[393241754,1762372245367,-500.0,0.00014773,2]
[393241756,1762372245376,-500.0,0.00014773,2]
[393241758,1762372245386,-871.99051887,0.00014782,2]
[393241760,1762372245395,-2882.39203257,0.00015,2]
[393241761,1762372245404,-160.0,0.00015,2]
[393241763,1762372245413,-342.430816,0.00015028,2]
[393241765,1762372245423,-342.430816,0.00015028,2]
[393241767,1762372245432,-342.430816,0.00015028,2]
[393241769,1762372245441,-342.430816,0.00015028,2]
[393241771,1762372245450,-100000.0,0.00015028,2]
[393241773,1762372245459,-500.0,0.00015068,2]
[393241775,1762372245468,-500.0,0.00015073,2]
[393241777,1762372245478,-158.114221,0.00015206,2]
[393241779,1762372245488,-358.36019115,0.00015237,2]
[393241781,1762372245497,-628.0,0.00015318,2]
[393241783,1762372245506,-986.0,0.00015318,2]
[393241785,1762372245515,-2165.0,0.00015318,2]
[393241787,1762372245524,-4397.0,0.00015318,2]
[393241789,1762372245533,-478.95419873,0.00015321,2]
[393241791,1762372245542,-1000.0,0.00015321,2]
[393241793,1762372245551,-1000.0,0.00015321,2]
[393241795,1762372245560,-530.87,0.00015454,2]
[393241796,1762372245569,-1680.0,0.00015542,2]
[393241797,1762372245578,-420.0,0.00015542,2]
[393241798,1762372245587,-222.14203487,0.00015587,2]
[393241800,1762372245597,-1680.0,0.00015608,2]
[393241801,1762372245606,-1000.0,0.00015621,2]
[393241802,1762372245616,-168.77731094,0.00015751,2]
[393241803,1762372245625,-577.13250122,0.00015838,2]
[393241804,1762372245636,-1500.0,0.00015868,2]
[393241805,1762372245645,-1518.1269888,0.00015868,2]
[393241806,1762372245654,-388.437335,0.00015973,2]
[393241807,1762372245663,-1288.05977315,0.00016,2]
[393241808,1762372245672,-720.0,0.00016042,2]
[393241809,1762372245681,-1042.70741191,0.00016164,2]
[393241810,1762372245690,-1500.0,0.00016168,2]
[393241811,1762372245700,-1061.74,0.00016189,2]
[393241812,1762372245709,-381.35442984,0.00016194,2]
[393241813,1762372245719,-151.0,0.000164,2]
[393241814,1762372245729,-2000.0,0.00016416,2]
[393241815,1762372245738,-151.0,0.000167,2]
[393241816,1762372245748,-1070.26920145,0.00016716,2]
[393241817,1762372245757,-1592.62,0.00016925,2]
[393241818,1762372245766,-2500.0,0.00016964,2]
[393241819,1762372245775,-295.67419045,0.00017,2]
[393241820,1762372245785,-1637.0,0.00017024,2]
[393241821,1762372245794,-587.0,0.00017024,2]
[393241822,1762372245803,-577.13250122,0.00017135,3]
[393241823,1762372245812,-2351.0,0.00017169,2]
[393241824,1762372245822,-179.21640581,0.00017352,2]
[393241825,1762372245831,-3663.861654,0.00017452,2]
[393241826,1762372245840,-2477.01044079,0.00017512,2]
[393241827,1762372245849,-1500.0,0.00017512,2]
[393241828,1762372245859,-2119.50884675,0.000176,2]
[393241829,1762372245868,-864.0,0.00017646,2]
[393241830,1762372245877,-2123.49,0.00017661,2]
[393241831,1762372245886,-342.430816,0.00017685,2]
[393241832,1762372245895,-342.430816,0.00017685,2]
[393241833,1762372245905,-342.430816,0.00017685,2]
[393241835,1762372245914,-342.430816,0.00017685,2]
[393241837,1762372245924,-178.26675568,0.00017707,2]
[393241838,1762372245933,-9813.582156,0.00017831,2]
[393241839,1762372245942,-160.0,0.00017841,2]
[393241840,1762372245952,-160.0,0.00017841,2]
[393241841,1762372245961,-160.0,0.00017841,2]
[393241842,1762372245971,-160.0,0.00017841,2]
[393241843,1762372245982,-399.56292103,0.00017843,2]
[393241844,1762372245991,-388.437335,0.0001786,2]
[393241845,1762372246001,-408.29076736,0.00017882,2]
[393241846,1762372246010,-443.57748536,0.00017921,4]
[393241847,1762372246020,-160.0,0.00017945,2]
[393241848,1762372246030,-11495.90481029,0.00018,2]
[393241849,1762372246039,-321.30941545,0.00018,2]
[393241850,1762372246049,-1682.64501892,0.00018,2]
[393241851,1762372246061,-439.52713947,0.00018194,2]
[393241852,1762372246070,-466.61801984,0.00018199,2]
[393241853,1762372246079,-628.0,0.00018318,2]
[393241854,1762372246088,-986.0,0.00018318,2]
[393241855,1762372246097,-2165.0,0.00018318,2]
[393241857,1762372246107,-2654.36,0.00018397,2]
[393241858,1762372246116,-150.0,0.00018405,2]
[393241859,1762372246125,-150.0,0.00018405,2]
[393241861,1762372246135,-577.13250122,0.00018432,4]
[393241862,1762372246144,-260.0,0.00018493,2]
[393241863,1762372246153,-1513.55874298,0.000185,2]
[393241864,1762372246162,-388.437335,0.000185,3]
[393241865,1762372246171,-388.437335,0.000185,3]
[393241866,1762372246180,-388.437335,0.000185,3]
[393241867,1762372246189,-388.437335,0.000185,3]
[393241868,1762372246198,-388.437335,0.000185,3]
[393241869,1762372246207,-729.09065599,0.00018516,2]
[393241870,1762372246216,-823.0,0.00018647,2]
[393241871,1762372246226,-162.84910973,0.00018783,2]
[393241873,1762372246237,-3292.0,0.00018886,2]
[393241874,1762372246248,-166.0,0.00018906,2]
[393241875,1762372246257,-153.0,0.00018906,2]
[393241876,1762372246266,-176.3809575,0.00018906,2]
[393241877,1762372246275,-151.0,0.00018906,2]
[393241878,1762372246285,-153.0,0.00018906,2]
[393241879,1762372246294,-332.0,0.00018906,2]
[393241880,1762372246304,-151.0,0.00018906,2]
[393241881,1762372246314,-153.0,0.00018906,2]
[393241882,1762372246324,-332.0,0.00018906,2]
[393241883,1762372246333,-153.0,0.00018906,2]
[393241884,1762372246342,-332.0,0.00018906,2]
[393241885,1762372246351,-172.0,0.00018906,2]
[393241886,1762372246361,-153.0,0.00018906,2]
[393241887,1762372246462,-332.0,0.00018906,2]
[393241888,1762372246472,-166.0,0.00018906,2]
[393241889,1762372246482,-153.0,0.00018906,2]
[393241890,1762372246492,-332.0,0.00018906,2]
[393241891,1762372246501,-166.0,0.00018906,2]
[393241892,1762372246511,-332.0,0.00018906,2]
[393241894,1762372246520,-153.0,0.00018906,2]
[393241896,1762372246530,-153.0,0.00018906,2]
[393241898,1762372246540,-153.0,0.00018906,2]
[393241899,1762372246550,-167.42683584,0.00018906,2]
[393241900,1762372246559,-320.55928007,0.0001891,2]
[393241901,1762372246569,-34828.99572029,0.00019,2]
[393241902,1762372246579,-342.430816,0.00019,2]
[393241903,1762372246588,-342.430816,0.00019,2]
[393241904,1762372246598,-342.430816,0.00019,2]
[393241905,1762372246608,-342.430816,0.00019,2]
[393241906,1762372246618,-360.0,0.00019041,2]
[393241907,1762372246627,-3185.23,0.00019133,2]
[393241909,1762372246637,-4397.0,0.00019147,2]
[393241910,1762372246646,-415.37396387,0.00019173,2]
[393241911,1762372246656,-500.0,0.00019173,2]
[393241912,1762372246666,-500.0,0.00019173,2]
[393241913,1762372246676,-501.07122369,0.00019173,2]
[393241914,1762372246686,-500.0,0.00019173,2]
[393241915,1762372246695,-501.31378637,0.00019173,2]
[393241916,1762372246705,-429.86084432,0.00019173,2]
[393241917,1762372246715,-500.0,0.00019173,2]
[393241918,1762372246725,-500.0,0.00019173,2]
[393241919,1762372246736,-500.0,0.00019173,2]
[393241920,1762372246746,-500.0,0.00019173,2]
[393241921,1762372246755,-500.0,0.00019173,2]
[393241922,1762372246765,-500.0,0.00019173,2]
[393241923,1762372246774,-150.0,0.00019178,2]
[393241924,1762372246783,-300.0,0.00019178,2]
[393241925,1762372246793,-450.0,0.00019178,2]
[393241926,1762372246803,-600.0,0.00019178,2]
[393241927,1762372246813,-750.0,0.00019178,2]
[393241928,1762372246822,-810.98362457,0.00019178,2]
[393241929,1762372246832,-200.0,0.00019178,3]
[393241930,1762372246843,-342.430816,0.00019178,2]
[393241931,1762372246852,-342.430816,0.00019178,2]
[393241932,1762372246862,-342.430816,0.00019178,2]
[393241933,1762372246871,-342.430808,0.00019178,2]
[393241934,1762372246881,-890.15506058,0.00019178,2]
[393241935,1762372246890,-890.15506058,0.00019178,2]
[393241936,1762372246899,-890.15506058,0.00019178,2]
[393241937,1762372246908,-890.15506058,0.00019178,2]
[393241938,1762372246918,-890.15506058,0.00019178,2]
[393241939,1762372246927,-890.15506058,0.00019178,2]
[393241940,1762372246936,-890.15506058,0.00019178,2]
[393241941,1762372246946,-890.15506058,0.00019178,2]
[393241942,1762372246956,-890.15506058,0.00019178,2]
[393241943,1762372246966,-890.15506058,0.00019178,2]
[393241944,1762372246975,-890.15506058,0.00019178,2]
[393241945,1762372246986,-890.15506058,0.00019178,2]
[393241946,1762372246995,-890.15506058,0.00019178,2]
[393241947,1762372247005,-890.15506058,0.00019178,2]
[393241948,1762372247014,-890.15506058,0.00019178,2]
[393241949,1762372247023,-890.15506058,0.00019178,2]
[393241950,1762372247032,-890.15506058,0.00019178,2]
[393241951,1762372247042,-890.15506058,0.00019178,2]
[393241952,1762372247052,-890.15506058,0.00019178,2]
[393241953,1762372247061,-890.15506058,0.00019178,2]
[393241954,1762372247070,-890.15506058,0.00019178,2]
[393241955,1762372247079,-890.15506058,0.00019178,2]
[393241956,1762372247088,-890.15506058,0.00019178,2]
[393241957,1762372247097,-890.15506058,0.00019178,2]
[393241958,1762372247106,-890.15506058,0.00019178,2]
[393241959,1762372247115,-890.15506058,0.00019178,2]
[393241960,1762372247124,-890.15506058,0.00019178,2]
[393241961,1762372247134,-890.15506058,0.00019178,2]
[393241962,1762372247143,-890.15506058,0.00019178,2]
[393241963,1762372247153,-890.15506058,0.00019178,2]
[393241964,1762372247162,-890.15506058,0.00019178,2]
[393241965,1762372247171,-890.15506058,0.00019178,2]
[393241966,1762372247181,-890.15506058,0.00019178,2]
[393241967,1762372247190,-890.15506058,0.00019178,2]
[393241968,1762372247200,-890.15506058,0.00019178,2]
[393241969,1762372247210,-890.15506058,0.00019178,2]
[393241970,1762372247220,-890.15506058,0.00019178,2]
[393241971,1762372247232,-890.15506058,0.00019178,2]
[393241972,1762372247246,-890.15506058,0.00019178,2]
[393241973,1762372247258,-890.15506058,0.00019178,2]
[393241974,1762372247267,-890.15506058,0.00019178,2]
[393241975,1762372247276,-890.15506058,0.00019178,2]
[393241976,1762372247287,-890.15506058,0.00019178,2]
[393241977,1762372247295,-890.15506058,0.00019178,2]
[393241978,1762372247305,-890.15506058,0.00019178,2]
[393241979,1762372247315,-890.15506058,0.00019178,2]
[393241980,1762372247324,-890.15506058,0.00019178,2]
[393241981,1762372247334,-890.15506058,0.00019178,2]
[393241982,1762372247343,-890.15506058,0.00019178,2]
[393241983,1762372247352,-890.15506058,0.00019178,2]
[393241984,1762372247362,-890.15506058,0.00019178,2]
[393241985,1762372247370,-890.15506058,0.00019178,2]
[393241986,1762372247380,-890.15506058,0.00019178,2]
[393241987,1762372247389,-890.15506058,0.00019178,2]
[393241988,1762372247398,-890.15506058,0.00019178,2]
[393241989,1762372247407,-890.15506058,0.00019178,2]
[393241990,1762372247418,-890.15506058,0.00019178,2]
[393241991,1762372247427,-890.15506058,0.00019178,2]
[393241992,1762372247436,-890.15506058,0.00019178,2]
[393241993,1762372247445,-890.15506058,0.00019178,2]
[393241994,1762372247454,-890.15506058,0.00019178,2]
[393241995,1762372247463,-890.15506058,0.00019178,2]
[393241996,1762372247473,-890.15506058,0.00019178,2]
[393241997,1762372247487,-890.15506058,0.00019178,2]
[393241998,1762372247497,-890.15506058,0.00019178,2]
[393241999,1762372247506,-890.15506058,0.00019178,2]
[393242000,1762372247515,-890.15506058,0.00019178,2]
[393242001,1762372247525,-574.916001,0.00019178,2]
[393242002,1762372247534,-574.916001,0.00019178,2]
[393242003,1762372247543,-574.916001,0.00019178,2]
[393242004,1762372247553,-574.916001,0.00019178,2]
[393242005,1762372247562,-574.916001,0.00019178,2]
[393242006,1762372247571,-574.916001,0.00019178,2]
[393242007,1762372247580,-574.916001,0.00019178,2]
[393242008,1762372247589,-574.916001,0.00019178,2]
[393242009,1762372247598,-574.916001,0.00019178,2]
[393242010,1762372247607,-574.916001,0.00019178,2]
[393242011,1762372247616,-574.916001,0.00019178,2]
[393242012,1762372247625,-574.916001,0.00019178,2]
[393242013,1762372247635,-574.916001,0.00019178,2]
[393242014,1762372247644,-574.916001,0.00019178,2]
[393242015,1762372247653,-574.916001,0.00019178,2]
[393242016,1762372247663,-574.916001,0.00019178,2]
[393242017,1762372247672,-574.916001,0.00019178,2]
[393242018,1762372247681,-574.916001,0.00019178,2]
[393242019,1762372247691,-574.916001,0.00019178,2]
[393242020,1762372247701,-574.916002,0.00019178,2]
[393242021,1762372247710,-287.271535,0.00019178,2]
[393242022,1762372247719,-287.271535,0.00019178,2]
[393242023,1762372247729,-287.271535,0.00019178,2]
[393242024,1762372247740,-287.271535,0.00019178,2]
[393242025,1762372247750,-287.271535,0.00019178,2]
[393242026,1762372247759,-287.271535,0.00019178,2]
[393242027,1762372247768,-287.271535,0.00019178,2]
[393242028,1762372247778,-287.271535,0.00019178,2]
[393242029,1762372247787,-287.271535,0.00019178,2]
[393242030,1762372247797,-287.271535,0.00019178,2]
[393242031,1762372247806,-287.271535,0.00019178,2]
[393242032,1762372247816,-287.271535,0.00019178,2]
[393242033,1762372247826,-287.271535,0.00019178,2]
[393242034,1762372247835,-287.271535,0.00019178,2]
[393242035,1762372247845,-287.271535,0.00019178,2]
[393242036,1762372247854,-287.271535,0.00019178,2]
[393242037,1762372247863,-150.0,0.00019178,2]
[393242038,1762372247873,-5721.9120549,0.0001925,2]
[393242039,1762372247882,-3663.861654,0.00019255,2]
[393242040,1762372247891,-300.0,0.00019315,2]
[393242041,1762372247900,-1000.0,0.00019411,2]
[393242042,1762372247909,-450.0,0.00019452,2]
[393242043,1762372247919,-460.0,0.00019589,2]
[393242044,1762372247929,-533.26970921,0.00019589,2]
[393242045,1762372247939,-9813.582156,0.00019682,2]
[393242046,1762372247948,-168.77731094,0.00019689,2]
[393242047,1762372247958,-1000.0,0.00019721,2]
[393242048,1762372247967,-1000.0,0.00019721,2]
[393242049,1762372247976,-1000.0,0.00019721,2]
[393242050,1762372247987,-1000.0,0.00019721,2]
[393242051,1762372247996,-1000.0,0.00019721,2]
[393242052,1762372248007,-1000.0,0.00019721,2]
[393242053,1762372248016,-1000.0,0.00019721,2]
[393242054,1762372248026,-1000.0,0.00019721,2]
[393242055,1762372248034,-577.13250122,0.00019729,5]
[393242056,1762372248044,-388.437335,0.00019746,2]
[393242057,1762372248054,-159.11460745,0.00019767,2]
[393242058,1762372248063,-501.19653421,0.00019767,2]
[393242059,1762372248074,-500.0,0.00019767,2]
[393242060,1762372248084,-500.0,0.00019767,2]
[393242061,1762372248096,-500.0,0.00019767,2]
[393242062,1762372248107,-166.0,0.0001981,2]
[393242063,1762372248117,-166.0,0.0001981,2]
[393242064,1762372248127,-166.0,0.0001981,2]
[393242065,1762372248135,-332.0,0.0001981,2]
[393242066,1762372248145,-332.0,0.0001981,2]
[393242067,1762372248154,-153.0,0.0001981,2]
[393242068,1762372248163,-332.0,0.0001981,2]
[393242069,1762372248172,-332.0,0.0001981,2]
[393242070,1762372248181,-153.0,0.0001981,2]
[393242071,1762372248191,-332.0,0.0001981,2]
[393242072,1762372248202,-153.0,0.0001981,2]
[393242073,1762372248211,-332.0,0.0001981,2]
[393242074,1762372248220,-332.0,0.0001981,2]
[393242075,1762372248231,-332.0,0.0001981,2]
[393242076,1762372248243,-332.0,0.0001981,2]
[393242077,1762372248252,-332.0,0.0001981,2]
[393242078,1762372248261,-332.0,0.0001981,2]
[393242079,1762372248270,-332.0,0.0001981,2]
[393242080,1762372248287,-178.79891818,0.0001981,2]
[393242081,1762372248296,-332.0,0.0001981,2]
[393242082,1762372248304,-332.0,0.0001981,2]
[393242083,1762372248314,-332.0,0.0001981,2]
[393242084,1762372248323,-332.0,0.0001981,2]
[393242085,1762372248332,-332.0,0.0001981,2]
[393242086,1762372248342,-500.0,0.00019819,2]
[393242087,1762372248351,-288.19138928,0.00019819,2]
[393242088,1762372248361,-502.0511023,0.00019819,2]
[393242089,1762372248371,-500.0,0.00019819,2]
[393242090,1762372248380,-3716.1,0.00019869,2]
[393242091,1762372248389,-150.0,0.00019878,9]
[393242092,1762372248399,-5721.9120549,0.0001998,2]
[393242093,1762372248408,-14740.0,0.0002,7]
[393242094,1762372248417,-363.3887217,0.0002,2]
[393242095,1762372248426,-14583.33895614,0.0002,2]
[393242096,1762372248435,-368.68171506,0.0002,2]
[393242097,1762372248444,-23000.0,0.0002,2]
[393242098,1762372248453,-201.05315693,0.0002,2]
[393242099,1762372248462,-4079.85457247,0.0002,2]
[393242100,1762372248471,-7667.00983942,0.0002,5]
[393242101,1762372248481,-175.693,0.0002,2]
[393242102,1762372248490,-399.56292103,0.0002,7]
[393242103,1762372248499,-287.271535,0.0002,2]
[393242104,1762372248508,-287.271535,0.0002,2]
[393242105,1762372248606,-287.271535,0.0002,2]
[393242106,1762372248616,-287.271534,0.0002,2]
[393242107,1762372248626,-2000.0,0.0002,7]
[393242108,1762372248635,-560.0,0.00020137,2]
[393242109,1762372248644,-1002.942424,0.00020187,2]
[393242110,1762372248653,-497.69984911,0.00020194,2]
[393242111,1762372248663,-374.37554813,0.00020254,4]
[393242112,1762372248672,-805.71962613,0.00020268,2]
[393242113,1762372248682,-1500.0,0.00020268,2]
[393242114,1762372248691,-1500.0,0.00020268,2]
[393242115,1762372248700,-1500.0,0.00020268,2]
[393242116,1762372248709,-1500.0,0.00020268,2]
[393242117,1762372248719,-1500.0,0.00020268,2]
[393242118,1762372248729,-1500.0,0.00020268,2]
[393242119,1762372248739,-1500.0,0.00020268,2]
[393242120,1762372248748,-602.58055252,0.00020315,2]
[393242121,1762372248757,-279.01427267,0.00020315,2]
[393242122,1762372248766,-1000.0,0.00020315,2]
[393242123,1762372248775,-1000.0,0.00020367,2]
[393242124,1762372248783,-1000.0,0.00020367,2]
[393242125,1762372248792,-250.0,0.000204,2]
[393242126,1762372248801,-151.0,0.00020548,7]
[393242127,1762372248811,-151.0,0.00020548,7]
[393242128,1762372248820,-151.0,0.00020548,7]
[393242129,1762372248829,-151.0,0.00020548,7]
[393242130,1762372248839,-151.0,0.00020548,7]
[393242131,1762372248849,-164.473365,0.00020548,7]
[393242132,1762372248859,-4246.97,0.00020605,2]
[393242133,1762372248868,-1378.06353142,0.0002061,2]
[393242134,1762372248877,-600.0,0.0002064,2]
[393242135,1762372248886,-660.0,0.00020685,2]
[393242136,1762372248897,-5721.9120549,0.0002071,3]
[393242137,1762372248912,-1810.80484,0.00020753,2]
[393242138,1762372248921,-4609.0,0.00020775,2]
[393242139,1762372248931,-150.0,0.00020778,20]
[393242140,1762372248940,-1557.00124241,0.00020816,2]
[393242141,1762372248949,-1359.05721364,0.00020816,2]
[393242142,1762372248958,-2000.0,0.00020816,2]
[393242143,1762372248968,-2000.0,0.00020816,2]
[393242144,1762372248977,-1025.10056905,0.00020816,2]
[393242145,1762372248987,-2000.0,0.00020816,2]
[393242146,1762372248996,-2000.0,0.00020816,2]
[393242147,1762372249005,-2477.01044079,0.00020826,2]
[393242148,1762372249014,-600.0,0.00020855,2]
[393242149,1762372249024,-1500.0,0.00020863,2]
[393242150,1762372249034,-254.29517568,0.000209,2]
[393242151,1762372249044,-660.51898209,0.00020914,2]
[393242152,1762372249053,-1500.0,0.00020914,2]
[393242153,1762372249063,-205.65680077,0.00021,2]
[393242154,1762372249073,-49249.0,0.00021,2]
[393242155,1762372249082,-2000.0,0.00021,7]
[393242156,1762372249091,-155.55,0.00021013,2]
[393242157,1762372249100,-577.70963373,0.00021027,7]
[393242158,1762372249111,-3663.861654,0.00021059,2]
[393242159,1762372249119,-600.0,0.0002107,2]
[393242160,1762372249128,-760.0,0.00021233,2]
[393242161,1762372249137,-600.0,0.00021285,2]
[393242162,1762372249146,-628.0,0.00021318,2]
[393242163,1762372249155,-986.0,0.00021318,2]
[393242164,1762372249164,-2165.0,0.00021318,2]
[393242165,1762372249173,-4777.85,0.00021341,2]
[393242166,1762372249182,-1000.0,0.00021352,20]
[393242167,1762372249191,-244.0,0.00021352,20]
[393242168,1762372249199,-2500.0,0.00021364,2]
[393242169,1762372249208,-1891.68741637,0.00021364,2]
[393242170,1762372249217,-2500.0,0.00021364,2]
[393242171,1762372249227,-2500.0,0.00021364,2]
[393242172,1762372249242,-503.56191469,0.00021411,2]
[393242173,1762372249251,-5721.9120549,0.0002144,3]
[393242174,1762372249260,-2000.0,0.00021462,2]
[393242175,1762372249269,-12750.70442787,0.000215,2]
[393242176,1762372249279,-388.437335,0.000215,4]
[393242177,1762372249288,-388.437335,0.000215,4]
[393242178,1762372249297,-388.437335,0.000215,4]
[393242179,1762372249306,-388.437335,0.000215,4]
[393242180,1762372249317,-388.437335,0.000215,4]
[393242181,1762372249326,-600.0,0.000215,2]
[393242182,1762372249335,-9813.582156,0.00021534,2]
[393242183,1762372249345,-388.437335,0.00021633,2]
[393242184,1762372249354,-860.0,0.00021781,2]
[393242185,1762372249363,-3000.0,0.00021912,2]
[393242186,1762372249373,-3000.0,0.00021912,2]
[393242187,1762372249383,-3000.0,0.00021912,2]
[393242188,1762372249392,-298.833616,0.00021918,7]
[393242189,1762372249401,-298.833616,0.00021918,7]
[393242190,1762372249411,-298.833616,0.00021918,7]
[393242191,1762372249419,-298.833616,0.00021918,7]
[393242192,1762372249428,-298.833616,0.00021918,7]
[393242193,1762372249437,-298.833616,0.00021918,7]
[393242194,1762372249446,-298.833616,0.00021918,7]
[393242195,1762372249455,-298.833616,0.00021918,7]
[393242196,1762372249464,-298.833616,0.00021918,7]
[393242197,1762372249473,-298.833616,0.00021918,7]
[393242198,1762372249483,-298.833616,0.00021918,7]
[393242199,1762372249492,-298.833616,0.00021918,7]
[393242200,1762372249501,-298.833616,0.00021918,7]
[393242201,1762372249510,-298.833616,0.00021918,7]
[393242202,1762372249519,-298.833616,0.00021918,7]
[393242203,1762372249528,-298.833616,0.00021918,7]
[393242204,1762372249538,-298.833616,0.00021918,7]
[393242205,1762372249548,-298.833616,0.00021918,7]
[393242206,1762372249558,-298.833616,0.00021918,7]
[393242207,1762372249568,-298.833618,0.00021918,7]
[393242208,1762372249577,-161.680332,0.00021918,7]
[393242209,1762372249586,-153.0,0.00021918,2]
[393242210,1762372249595,-296.48022386,0.00021918,2]
[393242211,1762372249607,-153.39630286,0.00021918,2]
[393242212,1762372249616,-153.0,0.00021918,2]
[393242213,1762372249626,-504.14145563,0.00021948,2]
[393242214,1762372249635,-300.0,0.00022,2]
[393242215,1762372249645,-1489.26,0.00022,14]
[393242216,1762372249655,-2000.0,0.00022,14]
[393242217,1762372249664,-2001.62,0.00022,14]
[393242218,1762372249673,-935.53736565,0.00022,5]
[393242219,1762372249682,-1736.83,0.00022,14]
[393242220,1762372249691,-60166.33427424,0.00022,2]
[393242221,1762372249701,-250.0,0.00022,2]
[393242222,1762372249710,-250.0,0.00022,2]
[393242223,1762372249719,-250.0,0.00022,2]
[393242224,1762372249728,-3746.99,0.00022,7]
[393242225,1762372249738,-68723.64,0.00022,7]
[393242226,1762372249747,-21141.15436941,0.00022,2]
[393242227,1762372249757,-399.56292103,0.00022,7]
[393242228,1762372249766,-2000.0,0.00022,7]
[393242229,1762372249776,-2500.0,0.0002201,2]
[393242230,1762372249785,-500.0,0.00022021,2]
[393242231,1762372249794,-500.0,0.00022021,2]
[393242232,1762372249803,-500.0,0.00022021,2]
[393242233,1762372249812,-5308.72,0.00022077,2]
[393242234,1762372249821,-5721.9120549,0.0002217,4]
[393242235,1762372249830,-555.87255875,0.00022194,2]
[393242236,1762372249839,-5601.25543111,0.000222,7]